[Event "Titled Tuesday Blitz August 16 Late 2022"]
[White "Badmatsyrenov, Oleg"]
[Black "Ardila, Oscar Humberto"]
[WhiteFideId "24115762"]
[BlackFideId "4404742"]
[WhiteElo "2403"]
[BlackElo "1939"]
[Result "1-0"]
[Round "02"]
[TimeControl "180+1"]
[Date "2022.08.18"]
[WhiteClock "0:00:00"]
[BlackClock "0:00:00"]

1. e4 {[%clk 0:00:00]}  e5 {[%clk 0:00:00]} 2. Nc3 {[%clk 0:00:00]}  Nf6 {[%clk 0:00:00]} 3. f4 {[%clk 0:00:00]}  d6 {[%clk 0:00:00]} 4. Nf3 {[%clk 0:00:00]}  Bg4 {[%clk 0:00:00]} 5. h3 {[%clk 0:00:00]}  Bxf3 {[%clk 0:00:00]} 6. Qxf3 {[%clk 0:00:00]}  Nc6 {[%clk 0:00:00]} 7. Bb5 {[%clk 0:00:00]}  Be7 {[%clk 0:00:00]} 8. fxe5 {[%clk 0:00:00]}  dxe5 {[%clk 0:00:00]} 9. Bxc6+ {[%clk 0:00:00]}  bxc6 {[%clk 0:00:00]} 10. O-O {[%clk 0:00:00]}  O-O {[%clk 0:00:00]} 11. d3 {[%clk 0:00:00]}  Rb8 {[%clk 0:00:00]} 12. Kh1 {[%clk 0:00:00]}  Nd7 {[%clk 0:00:00]} 13. b3 {[%clk 0:00:00]}  Bb4 {[%clk 0:00:00]} 14. Ne2 {[%clk 0:00:00]}  Qe7 {[%clk 0:00:00]} 15. Be3 {[%clk 0:00:00]}  Bc5 {[%clk 0:00:00]} 16. Ng3 {[%clk 0:00:00]}  Bxe3 {[%clk 0:00:00]} 17. Qxe3 {[%clk 0:00:00]}  f6 {[%clk 0:00:00]} 18. Nf5 {[%clk 0:00:00]}  Qc5 {[%clk 0:00:00]} 19. Qg3 {[%clk 0:00:00]}  g6 {[%clk 0:00:00]} 20. Rf2 {[%clk 0:00:00]}  Kh8 {[%clk 0:00:00]} 21. Ne3 {[%clk 0:00:00]}  a5 {[%clk 0:00:00]} 22. a4 {[%clk 0:00:00]}  Qe7 {[%clk 0:00:00]} 23. Raf1 {[%clk 0:00:00]}  Qg7 {[%clk 0:00:00]} 24. Ng4 {[%clk 0:00:00]}  h5 {[%clk 0:00:00]} 25. Ne3 {[%clk 0:00:00]}  Qh6 {[%clk 0:00:00]} 26. Nc4 {[%clk 0:00:00]}  Ra8 {[%clk 0:00:00]} 27. Qh4 {[%clk 0:00:00]}  Kg7 {[%clk 0:00:00]} 28. Qg3 {[%clk 0:00:00]}  Qg5 {[%clk 0:00:00]} 29. Qxg5 {[%clk 0:00:00]}  fxg5 {[%clk 0:00:00]} 30. Rxf8 {[%clk 0:00:00]}  Nxf8 {[%clk 0:00:00]} 31. Nxe5 {[%clk 0:00:00]}  Ne6 {[%clk 0:00:00]} 32. Rf7+ {[%clk 0:00:00]}  Kh6 {[%clk 0:00:00]} 33. Nxc6 {[%clk 0:00:00]}  g4 {[%clk 0:00:00]} 34. h4 {[%clk 0:00:00]}  Ra6 {[%clk 0:00:00]} 35. Ne7 {[%clk 0:00:00]}  Ra8 {[%clk 0:00:00]} 36. g3 {[%clk 0:00:00]}  Nd4 {[%clk 0:00:00]} 37. Nd5 {[%clk 0:00:00]}  Nxc2 {[%clk 0:00:00]} 38. Nxc7 {[%clk 0:00:00]}  Rc8 {[%clk 0:00:00]} 39. Ne6 {[%clk 0:00:00]}  Ne3 {[%clk 0:00:00]} 40. Kg1 {[%clk 0:00:00]}  Rc2 {[%clk 0:00:00]} 41. Ng5 {[%clk 0:00:00]}  Rc1+ {[%clk 0:00:00]} 42. Kf2 {[%clk 0:00:00]}  Rf1+ {[%clk 0:00:00]} 43. Kxe3 {[%clk 0:00:00]}  Rxf7 {[%clk 0:00:00]} 44. Nxf7+ {[%clk 0:00:00]} 1-0


[Site "https://www.chess.com"]

[Event "Titled Tuesday Blitz August 16 Late 2022"]
[White "Barash, Anton"]
[Black "Graif, William"]
[WhiteFideId "30935229"]
[BlackFideId "2609835"]
[WhiteElo "2088"]
[BlackElo "1942"]
[Result "1-0"]
[Round "02"]
[TimeControl "180+1"]
[Date "2022.08.18"]
[WhiteClock "0:00:00"]
[BlackClock "0:00:00"]

1. e4 {[%clk 0:00:00]}  e5 {[%clk 0:00:00]} 2. Nc3 {[%clk 0:00:00]}  Bc5 {[%clk 0:00:00]} 3. Nf3 {[%clk 0:00:00]}  Nf6 {[%clk 0:00:00]} 4. Nxe5 {[%clk 0:00:00]}  Nc6 {[%clk 0:00:00]} 5. Nd3 {[%clk 0:00:00]}  Bb6 {[%clk 0:00:00]} 6. Be2 {[%clk 0:00:00]}  O-O {[%clk 0:00:00]} 7. O-O {[%clk 0:00:00]}  Re8 {[%clk 0:00:00]} 8. Bf3 {[%clk 0:00:00]}  d5 {[%clk 0:00:00]} 9. Nxd5 {[%clk 0:00:00]}  Nxd5 {[%clk 0:00:00]} 10. exd5 {[%clk 0:00:00]}  Nd4 {[%clk 0:00:00]} 11. b3 {[%clk 0:00:00]}  Bf5 {[%clk 0:00:00]} 12. Bb2 {[%clk 0:00:00]}  Bxd3 {[%clk 0:00:00]} 13. cxd3 {[%clk 0:00:00]}  Qg5 {[%clk 0:00:00]} 14. Bc3 {[%clk 0:00:00]}  Re5 {[%clk 0:00:00]} 15. Rc1 {[%clk 0:00:00]}  Rae8 {[%clk 0:00:00]} 16. Bxd4 {[%clk 0:00:00]}  Bxd4 {[%clk 0:00:00]} 17. Rxc7 {[%clk 0:00:00]}  Bxf2+ {[%clk 0:00:00]} 18. Kxf2 {[%clk 0:00:00]}  Qh4+ {[%clk 0:00:00]} 19. Kg1 {[%clk 0:00:00]}  Re1 {[%clk 0:00:00]} 20. Qxe1 {[%clk 0:00:00]}  Qxe1 {[%clk 0:00:00]} 21. Rxe1 {[%clk 0:00:00]}  Rxe1+ {[%clk 0:00:00]} 22. Kf2 {[%clk 0:00:00]}  Re8 {[%clk 0:00:00]} 23. d6 {[%clk 0:00:00]}  Kf8 {[%clk 0:00:00]} 24. d7 {[%clk 0:00:00]}  Rd8 {[%clk 0:00:00]} 25. Rxb7 {[%clk 0:00:00]}  Ke7 {[%clk 0:00:00]} 26. Rxa7 {[%clk 0:00:00]} 1-0


[Site "https://www.chess.com"]

[Event "Titled Tuesday Blitz August 16 Late 2022"]
[White "Bobadilla Viera, Jorge Samuel"]
[Black "Liu, Casper"]
[WhiteFideId "3906353"]
[BlackFideId "1454153"]
[WhiteElo "2202"]
[BlackElo "2025"]
[Result "0-1"]
[Round "02"]
[TimeControl "180+1"]
[Date "2022.08.18"]
[WhiteClock "0:00:00"]
[BlackClock "0:00:00"]

1. e4 {[%clk 0:00:00]}  e5 {[%clk 0:00:00]} 2. Nf3 {[%clk 0:00:00]}  Nc6 {[%clk 0:00:00]} 3. Bb5 {[%clk 0:00:00]}  a6 {[%clk 0:00:00]} 4. Ba4 {[%clk 0:00:00]}  Nf6 {[%clk 0:00:00]} 5. d3 {[%clk 0:00:00]}  Bc5 {[%clk 0:00:00]} 6. c3 {[%clk 0:00:00]}  b5 {[%clk 0:00:00]} 7. Bb3 {[%clk 0:00:00]}  O-O {[%clk 0:00:00]} 8. O-O {[%clk 0:00:00]}  d5 {[%clk 0:00:00]} 9. Nbd2 {[%clk 0:00:00]}  Bg4 {[%clk 0:00:00]} 10. h3 {[%clk 0:00:00]}  Bh5 {[%clk 0:00:00]} 11. Re1 {[%clk 0:00:00]}  Re8 {[%clk 0:00:00]} 12. Qe2 {[%clk 0:00:00]}  Bg6 {[%clk 0:00:00]} 13. Bc2 {[%clk 0:00:00]}  Nh5 {[%clk 0:00:00]} 14. Nf1 {[%clk 0:00:00]}  Nf4 {[%clk 0:00:00]} 15. Bxf4 {[%clk 0:00:00]}  exf4 {[%clk 0:00:00]} 16. Rad1 {[%clk 0:00:00]}  Qf6 {[%clk 0:00:00]} 17. e5 {[%clk 0:00:00]}  Qf5 {[%clk 0:00:00]} 18. Nh4 {[%clk 0:00:00]}  Qxe5 {[%clk 0:00:00]} 19. Qxe5 {[%clk 0:00:00]}  Nxe5 {[%clk 0:00:00]} 20. Rxe5 {[%clk 0:00:00]}  Rxe5 {[%clk 0:00:00]} 21. Nxg6 {[%clk 0:00:00]}  Re2 {[%clk 0:00:00]} 22. Bb3 {[%clk 0:00:00]}  Bxf2+ {[%clk 0:00:00]} 23. Kh1 {[%clk 0:00:00]}  hxg6 {[%clk 0:00:00]} 24. Bxd5 {[%clk 0:00:00]}  Rae8 {[%clk 0:00:00]} 0-1


[Site "https://www.chess.com"]

[Event "Titled Tuesday Blitz August 16 Late 2022"]
[White "Burke, Paul"]
[Black "Kashtanov, Ruslan"]
[WhiteFideId "2605767"]
[BlackFideId "4124871"]
[WhiteElo "1918"]
[BlackElo "2168"]
[Result "0-1"]
[Round "02"]
[TimeControl "180+1"]
[Date "2022.08.18"]
[WhiteClock "0:00:00"]
[BlackClock "0:00:00"]

1. e4 {[%clk 0:00:00]}  c5 {[%clk 0:00:00]} 2. d4 {[%clk 0:00:00]}  cxd4 {[%clk 0:00:00]} 3. c3 {[%clk 0:00:00]}  Nf6 {[%clk 0:00:00]} 4. Bd3 {[%clk 0:00:00]}  dxc3 {[%clk 0:00:00]} 5. Nxc3 {[%clk 0:00:00]}  Nc6 {[%clk 0:00:00]} 6. Nf3 {[%clk 0:00:00]}  d6 {[%clk 0:00:00]} 7. h3 {[%clk 0:00:00]}  g6 {[%clk 0:00:00]} 8. O-O {[%clk 0:00:00]}  Bg7 {[%clk 0:00:00]} 9. Be3 {[%clk 0:00:00]}  O-O {[%clk 0:00:00]} 10. Rc1 {[%clk 0:00:00]}  d5 {[%clk 0:00:00]} 11. e5 {[%clk 0:00:00]}  Nd7 {[%clk 0:00:00]} 12. Nxd5 {[%clk 0:00:00]}  Ndxe5 {[%clk 0:00:00]} 13. Nxe5 {[%clk 0:00:00]}  Bxe5 {[%clk 0:00:00]} 14. Qe2 {[%clk 0:00:00]}  Qxd5 {[%clk 0:00:00]} 0-1


[Site "https://www.chess.com"]

[Event "Titled Tuesday Blitz August 16 Late 2022"]
[White "Csonka, Balazs"]
[Black "Gheorghiu, Calin"]
[WhiteFideId "742910"]
[BlackFideId "1200305"]
[WhiteElo "2404"]
[BlackElo "2168"]
[Result "1-0"]
[Round "02"]
[TimeControl "180+1"]
[Date "2022.08.18"]
[WhiteClock "0:00:00"]
[BlackClock "0:00:00"]

1. e4 {[%clk 0:00:00]}  c5 {[%clk 0:00:00]} 2. Nf3 {[%clk 0:00:00]}  d6 {[%clk 0:00:00]} 3. d4 {[%clk 0:00:00]}  cxd4 {[%clk 0:00:00]} 4. Nxd4 {[%clk 0:00:00]}  Nf6 {[%clk 0:00:00]} 5. Nc3 {[%clk 0:00:00]}  a6 {[%clk 0:00:00]} 6. Bg5 {[%clk 0:00:00]}  e6 {[%clk 0:00:00]} 7. f4 {[%clk 0:00:00]}  Qb6 {[%clk 0:00:00]} 8. Qd2 {[%clk 0:00:00]}  Qxb2 {[%clk 0:00:00]} 9. Rb1 {[%clk 0:00:00]}  Qa3 {[%clk 0:00:00]} 10. e5 {[%clk 0:00:00]}  dxe5 {[%clk 0:00:00]} 11. fxe5 {[%clk 0:00:00]}  h6 {[%clk 0:00:00]} 12. Bh4 {[%clk 0:00:00]}  g5 {[%clk 0:00:00]} 13. exf6 {[%clk 0:00:00]}  gxh4 {[%clk 0:00:00]} 14. Be2 {[%clk 0:00:00]}  Qc5 {[%clk 0:00:00]} 15. Ne4 {[%clk 0:00:00]}  Qe5 {[%clk 0:00:00]} 16. Bf3 {[%clk 0:00:00]}  Nd7 {[%clk 0:00:00]} 17. O-O {[%clk 0:00:00]}  Bc5 {[%clk 0:00:00]} 18. c3 {[%clk 0:00:00]}  Rg8 {[%clk 0:00:00]} 19. Kh1 {[%clk 0:00:00]}  Nb6 {[%clk 0:00:00]} 20. Qxh6 {[%clk 0:00:00]}  Bd7 {[%clk 0:00:00]} 21. Nxc5 {[%clk 0:00:00]}  Qxc5 {[%clk 0:00:00]} 22. Bxb7 {[%clk 0:00:00]}  Ra7 {[%clk 0:00:00]} 23. Bf3 {[%clk 0:00:00]}  Qg5 {[%clk 0:00:00]} 24. Qh7 {[%clk 0:00:00]}  Nc8 {[%clk 0:00:00]} 25. Rb8 {[%clk 0:00:00]}  Rc7 {[%clk 0:00:00]} 26. h3 {[%clk 0:00:00]}  Rxc3 {[%clk 0:00:00]} 27. Re1 {[%clk 0:00:00]}  Rxf3 {[%clk 0:00:00]} 28. Qc2 {[%clk 0:00:00]}  Rc3 {[%clk 0:00:00]} 29. Qe2 {[%clk 0:00:00]}  Rc7 {[%clk 0:00:00]} 30. Nf3 {[%clk 0:00:00]}  Qxf6 {[%clk 0:00:00]} 31. Ne5 {[%clk 0:00:00]}  Rg3 {[%clk 0:00:00]} 32. Rf1 {[%clk 0:00:00]}  Qg5 {[%clk 0:00:00]} 33. Nxf7 {[%clk 0:00:00]}  Rc1 {[%clk 0:00:00]} 34. Nxg5 {[%clk 0:00:00]}  Rxf1+ {[%clk 0:00:00]} 35. Qxf1 {[%clk 0:00:00]}  Rxg5 {[%clk 0:00:00]} 36. Qc1 {[%clk 0:00:00]}  Rg7 {[%clk 0:00:00]} 37. Rxc8+ {[%clk 0:00:00]}  Bxc8 {[%clk 0:00:00]} 38. Qxc8+ {[%clk 0:00:00]}  Kf7 {[%clk 0:00:00]} 39. Qxa6 {[%clk 0:00:00]} 1-0


[Site "https://www.chess.com"]

[Event "Titled Tuesday Blitz August 16 Late 2022"]
[White "D`Arruda, Ricardo D."]
[Black "Tarnowska, Aleksandra"]
[WhiteFideId "100692"]
[BlackFideId "1180967"]
[WhiteElo "2271"]
[BlackElo "1700"]
[Result "1-0"]
[Round "02"]
[TimeControl "180+1"]
[Date "2022.08.18"]
[WhiteClock "0:00:00"]
[BlackClock "0:00:00"]

1. d4 {[%clk 0:00:00]}  d5 {[%clk 0:00:00]} 2. Nf3 {[%clk 0:00:00]}  e6 {[%clk 0:00:00]} 3. c4 {[%clk 0:00:00]}  Nf6 {[%clk 0:00:00]} 4. e3 {[%clk 0:00:00]}  Be7 {[%clk 0:00:00]} 5. Nc3 {[%clk 0:00:00]}  O-O {[%clk 0:00:00]} 6. Bd3 {[%clk 0:00:00]}  c5 {[%clk 0:00:00]} 7. O-O {[%clk 0:00:00]}  b6 {[%clk 0:00:00]} 8. b3 {[%clk 0:00:00]}  Bb7 {[%clk 0:00:00]} 9. Bb2 {[%clk 0:00:00]}  Nbd7 {[%clk 0:00:00]} 10. Qe2 {[%clk 0:00:00]}  Rc8 {[%clk 0:00:00]} 11. Rfd1 {[%clk 0:00:00]}  h6 {[%clk 0:00:00]} 12. dxc5 {[%clk 0:00:00]}  Nxc5 {[%clk 0:00:00]} 13. Bc2 {[%clk 0:00:00]}  Ba6 {[%clk 0:00:00]} 14. Qe1 {[%clk 0:00:00]}  Qc7 {[%clk 0:00:00]} 15. cxd5 {[%clk 0:00:00]}  Nxd5 {[%clk 0:00:00]} 16. Nxd5 {[%clk 0:00:00]}  exd5 {[%clk 0:00:00]} 17. Rxd5 {[%clk 0:00:00]}  Bb7 {[%clk 0:00:00]} 18. Rdd1 {[%clk 0:00:00]}  Bxf3 {[%clk 0:00:00]} 19. gxf3 {[%clk 0:00:00]}  Rfd8 {[%clk 0:00:00]} 20. Qe2 {[%clk 0:00:00]}  Rd6 {[%clk 0:00:00]} 21. Rxd6 {[%clk 0:00:00]}  Qxd6 {[%clk 0:00:00]} 22. f4 {[%clk 0:00:00]}  Qe6 {[%clk 0:00:00]} 23. Rd1 {[%clk 0:00:00]}  Bf6 {[%clk 0:00:00]} 24. Bxf6 {[%clk 0:00:00]}  Qxf6 {[%clk 0:00:00]} 25. b4 {[%clk 0:00:00]}  Ne6 {[%clk 0:00:00]} 26. Qd3 {[%clk 0:00:00]}  Nf8 {[%clk 0:00:00]} 27. Bb3 {[%clk 0:00:00]}  Ng6 {[%clk 0:00:00]} 28. Qd7 {[%clk 0:00:00]}  Rf8 {[%clk 0:00:00]} 29. Rd6 {[%clk 0:00:00]} 1-0


[Site "https://www.chess.com"]

[Event "Titled Tuesday Blitz August 16 Late 2022"]
[White "Djordjevic, Vuk"]
[Black "Proudian, Armen"]
[WhiteFideId "902098"]
[BlackFideId "2130734"]
[WhiteElo "2456"]
[BlackElo "2380"]
[Result "1-0"]
[Round "02"]
[TimeControl "180+1"]
[Date "2022.08.16"]
[WhiteClock "0:00:10"]
[BlackClock "0:00:44"]

1. d4 {[%clk 0:03:00]}  Nf6 {[%clk 0:02:58]} 2. Bg5 {[%clk 0:03:01]}  e6 {[%clk 0:02:57]} 3. e4 {[%clk 0:03:01]}  c5 {[%clk 0:02:57]} 4. d5 {[%clk 0:03:00]}  d6 {[%clk 0:02:57]} 5. Nc3 {[%clk 0:02:57]}  e5 {[%clk 0:02:54]} 6. Nf3 {[%clk 0:02:51]}  h6 {[%clk 0:02:54]} 7. Be3 {[%clk 0:02:48]}  Be7 {[%clk 0:02:51]} 8. h3 {[%clk 0:02:47]}  a6 {[%clk 0:02:45]} 9. a4 {[%clk 0:02:46]}  Qa5 {[%clk 0:02:45]} 10. Nd2 {[%clk 0:02:43]}  O-O {[%clk 0:02:37]} 11. g4 {[%clk 0:02:32]}  Nbd7 {[%clk 0:02:19]} 12. h4 {[%clk 0:02:17]}  Nh7 {[%clk 0:01:46]} 13. Be2 {[%clk 0:00:52]}  Qd8 {[%clk 0:01:39]} 14. Nf3 {[%clk 0:00:50]}  Ndf6 {[%clk 0:01:22]} 15. g5 {[%clk 0:00:50]}  Ng4 {[%clk 0:01:22]} 16. gxh6 {[%clk 0:00:44]}  Nxe3 {[%clk 0:01:22]} 17. fxe3 {[%clk 0:00:44]}  gxh6 {[%clk 0:01:21]} 18. Qd2 {[%clk 0:00:36]}  Kh8 {[%clk 0:01:21]} 19. O-O-O {[%clk 0:00:26]}  b5 {[%clk 0:01:19]} 20. Rdg1 {[%clk 0:00:23]}  bxa4 {[%clk 0:01:06]} 21. Nb1 {[%clk 0:00:15]}  Rb8 {[%clk 0:01:05]} 22. Qc3 {[%clk 0:00:14]}  Bf6 {[%clk 0:01:02]} 23. Nbd2 {[%clk 0:00:13]}  Rg8 {[%clk 0:00:58]} 24. Rxg8+ {[%clk 0:00:09]}  Qxg8 {[%clk 0:00:58]} 25. Nc4 {[%clk 0:00:10]}  Qd8 {[%clk 0:00:56]} 26. Nfd2 {[%clk 0:00:07]}  Rb4 {[%clk 0:00:56]} 27. Na3 {[%clk 0:00:07]}  a5 {[%clk 0:00:52]} 28. Ndc4 {[%clk 0:00:06]}  Nf8 {[%clk 0:00:49]} 29. Qe1 {[%clk 0:00:06]}  Ba6 {[%clk 0:00:46]} 30. c3 {[%clk 0:00:02]}  Rb3 {[%clk 0:00:46]} 31. Nxe5 {[%clk 0:00:02]}  Bxe5 {[%clk 0:00:44]} 32. Bxa6 {[%clk 0:00:03]}  Qb6 {[%clk 0:00:40]} 33. Bd3 {[%clk 0:00:02]}  Rxb2 {[%clk 0:00:40]} 34. Nc4 {[%clk 0:00:03]}  Qb3 {[%clk 0:00:35]} 35. Nxb2 {[%clk 0:00:02]}  Bxc3 {[%clk 0:00:36]} 36. Qe2 {[%clk 0:00:02]}  Bxb2+ {[%clk 0:00:36]} 37. Qxb2+ {[%clk 0:00:02]}  Qxb2+ {[%clk 0:00:37]} 38. Kxb2 {[%clk 0:00:02]}  Nd7 {[%clk 0:00:38]} 39. Ra1 {[%clk 0:00:02]}  Ne5 {[%clk 0:00:39]} 40. Kc3 {[%clk 0:00:03]}  Nf3 {[%clk 0:00:37]} 41. Rxa4 {[%clk 0:00:03]}  Nxh4 {[%clk 0:00:38]} 42. Rxa5 {[%clk 0:00:04]}  Kg7 {[%clk 0:00:39]} 43. e5 {[%clk 0:00:04]}  Nf3 {[%clk 0:00:40]} 44. exd6 {[%clk 0:00:04]}  Ne5 {[%clk 0:00:40]} 45. Bf5 {[%clk 0:00:05]}  h5 {[%clk 0:00:40]} 46. d7 {[%clk 0:00:05]}  Nxd7 {[%clk 0:00:41]} 47. Bxd7 {[%clk 0:00:06]}  Kf6 {[%clk 0:00:41]} 48. Bh3 {[%clk 0:00:07]}  Ke5 {[%clk 0:00:42]} 49. Ra4 {[%clk 0:00:08]}  Kxd5 {[%clk 0:00:42]} 50. Rh4 {[%clk 0:00:09]}  f5 {[%clk 0:00:41]} 51. Rxh5 {[%clk 0:00:09]}  Ke4 {[%clk 0:00:42]} 52. Rxf5 {[%clk 0:00:09]}  Kxe3 {[%clk 0:00:43]} 53. Rxc5 {[%clk 0:00:09]}  Ke2 {[%clk 0:00:42]} 54. Bf1+ {[%clk 0:00:09]}  Kd1 {[%clk 0:00:43]} 55. Re5 {[%clk 0:00:09]}  Kc1 {[%clk 0:00:44]} 56. Re1# {[%clk 0:00:10]} 1-0


[Site "https://www.chess.com"]

[Event "Titled Tuesday Blitz August 16 Late 2022"]
[White "Fier, Alexandr"]
[Black "Buchenau, Frank"]
[WhiteFideId "2107139"]
[BlackFideId "4604350"]
[WhiteElo "2598"]
[BlackElo "2157"]
[Result "1-0"]
[Round "02"]
[TimeControl "180+1"]
[Date "2022.08.18"]
[WhiteClock "0:00:00"]
[BlackClock "0:00:00"]

1. d4 {[%clk 0:00:00]}  e6 {[%clk 0:00:00]} 2. c4 {[%clk 0:00:00]}  Nf6 {[%clk 0:00:00]} 3. Nc3 {[%clk 0:00:00]}  Bb4 {[%clk 0:00:00]} 4. e3 {[%clk 0:00:00]}  O-O {[%clk 0:00:00]} 5. Ne2 {[%clk 0:00:00]}  c6 {[%clk 0:00:00]} 6. a3 {[%clk 0:00:00]}  Ba5 {[%clk 0:00:00]} 7. Qc2 {[%clk 0:00:00]}  d5 {[%clk 0:00:00]} 8. Ng3 {[%clk 0:00:00]}  Nbd7 {[%clk 0:00:00]} 9. Be2 {[%clk 0:00:00]}  dxc4 {[%clk 0:00:00]} 10. Bxc4 {[%clk 0:00:00]}  e5 {[%clk 0:00:00]} 11. O-O {[%clk 0:00:00]}  exd4 {[%clk 0:00:00]} 12. exd4 {[%clk 0:00:00]}  Bc7 {[%clk 0:00:00]} 13. Ba2 {[%clk 0:00:00]}  Nb6 {[%clk 0:00:00]} 14. Re1 {[%clk 0:00:00]}  Qxd4 {[%clk 0:00:00]} 15. Bg5 {[%clk 0:00:00]}  Nfd5 {[%clk 0:00:00]} 16. Rad1 {[%clk 0:00:00]}  Qg4 {[%clk 0:00:00]} 17. Nxd5 {[%clk 0:00:00]}  Nxd5 {[%clk 0:00:00]} 18. Rxd5 {[%clk 0:00:00]}  cxd5 {[%clk 0:00:00]} 19. Be7 {[%clk 0:00:00]}  Bxg3 {[%clk 0:00:00]} 20. Bxf8 {[%clk 0:00:00]}  Bf5 {[%clk 0:00:00]} 21. Qd2 {[%clk 0:00:00]}  Bf4 {[%clk 0:00:00]} 22. Qxd5 {[%clk 0:00:00]}  Rxf8 {[%clk 0:00:00]} 23. Qxf7+ {[%clk 0:00:00]}  Rxf7 {[%clk 0:00:00]} 24. Re8# {[%clk 0:00:00]} 1-0


[Site "https://www.chess.com"]

[Event "Titled Tuesday Blitz August 16 Late 2022"]
[White "Filgueira, Hernan"]
[Black "Grot, Blazej"]
[WhiteFideId "101770"]
[BlackFideId "21835845"]
[WhiteElo "2363"]
[BlackElo "1614"]
[Result "1-0"]
[Round "02"]
[TimeControl "180+1"]
[Date "2022.08.18"]
[WhiteClock "0:00:00"]
[BlackClock "0:00:00"]

1. Nf3 {[%clk 0:00:00]}  d5 {[%clk 0:00:00]} 2. g3 {[%clk 0:00:00]}  c5 {[%clk 0:00:00]} 3. Bg2 {[%clk 0:00:00]}  Nc6 {[%clk 0:00:00]} 4. O-O {[%clk 0:00:00]}  Nf6 {[%clk 0:00:00]} 5. d3 {[%clk 0:00:00]}  e5 {[%clk 0:00:00]} 6. Nbd2 {[%clk 0:00:00]}  Bd6 {[%clk 0:00:00]} 7. e4 {[%clk 0:00:00]}  O-O {[%clk 0:00:00]} 8. Re1 {[%clk 0:00:00]}  d4 {[%clk 0:00:00]} 9. Nc4 {[%clk 0:00:00]}  Bb8 {[%clk 0:00:00]} 10. a4 {[%clk 0:00:00]}  a6 {[%clk 0:00:00]} 11. a5 {[%clk 0:00:00]}  Bc7 {[%clk 0:00:00]} 12. Bd2 {[%clk 0:00:00]}  Be6 {[%clk 0:00:00]} 13. b3 {[%clk 0:00:00]}  Bxc4 {[%clk 0:00:00]} 14. bxc4 {[%clk 0:00:00]}  Bxa5 {[%clk 0:00:00]} 15. Bxa5 {[%clk 0:00:00]}  Nxa5 {[%clk 0:00:00]} 16. Nxe5 {[%clk 0:00:00]}  b5 {[%clk 0:00:00]} 17. Qd2 {[%clk 0:00:00]}  b4 {[%clk 0:00:00]} 18. Ra2 {[%clk 0:00:00]}  Qc7 {[%clk 0:00:00]} 19. f4 {[%clk 0:00:00]}  Nc6 {[%clk 0:00:00]} 20. Nxc6 {[%clk 0:00:00]}  Qxc6 {[%clk 0:00:00]} 21. e5 {[%clk 0:00:00]}  Qb6 {[%clk 0:00:00]} 22. Bxa8 {[%clk 0:00:00]}  Ng4 {[%clk 0:00:00]} 23. Bf3 {[%clk 0:00:00]}  Ne3 {[%clk 0:00:00]} 24. Rea1 {[%clk 0:00:00]}  b3 {[%clk 0:00:00]} 25. cxb3 {[%clk 0:00:00]}  Qxb3 {[%clk 0:00:00]} 26. Rxa6 {[%clk 0:00:00]}  Nxc4 {[%clk 0:00:00]} 27. Qd1 {[%clk 0:00:00]}  Qc3 {[%clk 0:00:00]} 28. dxc4 {[%clk 0:00:00]}  d3 {[%clk 0:00:00]} 29. Bd5 {[%clk 0:00:00]}  Qd4+ {[%clk 0:00:00]} 30. Kg2 {[%clk 0:00:00]}  d2 {[%clk 0:00:00]} 31. R6a2 {[%clk 0:00:00]}  Rb8 {[%clk 0:00:00]} 32. Qxd2 {[%clk 0:00:00]}  Qxd2+ {[%clk 0:00:00]} 33. Rxd2 {[%clk 0:00:00]}  h6 {[%clk 0:00:00]} 34. Ra8 {[%clk 0:00:00]}  h5 {[%clk 0:00:00]} 35. Rxb8+ {[%clk 0:00:00]} 1-0


[Site "https://www.chess.com"]

[Event "Titled Tuesday Blitz August 16 Late 2022"]
[White "Floresvillar Gonzalez, Luis Migu"]
[Black "Al-Tarboush, Ward"]
[WhiteFideId "5100542"]
[BlackFideId "7601450"]
[WhiteElo "2040"]
[BlackElo "2234"]
[Result "0-1"]
[Round "02"]
[TimeControl "180+1"]
[Date "2022.08.18"]
[WhiteClock "0:00:00"]
[BlackClock "0:00:00"]

1. d4 {[%clk 0:00:00]}  d5 {[%clk 0:00:00]} 2. c3 {[%clk 0:00:00]}  Nf6 {[%clk 0:00:00]} 3. Bg5 {[%clk 0:00:00]}  Ne4 {[%clk 0:00:00]} 4. h4 {[%clk 0:00:00]}  Nxg5 {[%clk 0:00:00]} 5. hxg5 {[%clk 0:00:00]}  Nc6 {[%clk 0:00:00]} 6. f4 {[%clk 0:00:00]}  Bf5 {[%clk 0:00:00]} 7. e3 {[%clk 0:00:00]}  Qd6 {[%clk 0:00:00]} 8. Bd3 {[%clk 0:00:00]}  Qg6 {[%clk 0:00:00]} 9. Bxf5 {[%clk 0:00:00]}  Qxf5 {[%clk 0:00:00]} 10. Nf3 {[%clk 0:00:00]}  Qg4 {[%clk 0:00:00]} 11. Qe2 {[%clk 0:00:00]}  e6 {[%clk 0:00:00]} 12. Nbd2 {[%clk 0:00:00]}  Bd6 {[%clk 0:00:00]} 13. Ne5 {[%clk 0:00:00]}  Qxe2+ {[%clk 0:00:00]} 14. Kxe2 {[%clk 0:00:00]}  Nxe5 {[%clk 0:00:00]} 15. dxe5 {[%clk 0:00:00]}  Be7 {[%clk 0:00:00]} 16. Nf3 {[%clk 0:00:00]}  c5 {[%clk 0:00:00]} 17. g4 {[%clk 0:00:00]}  g6 {[%clk 0:00:00]} 18. Rh2 {[%clk 0:00:00]}  Kf8 {[%clk 0:00:00]} 19. Rah1 {[%clk 0:00:00]}  Kg7 {[%clk 0:00:00]} 20. Kd3 {[%clk 0:00:00]}  Rad8 {[%clk 0:00:00]} 21. b3 {[%clk 0:00:00]}  b5 {[%clk 0:00:00]} 22. Kc2 {[%clk 0:00:00]}  a5 {[%clk 0:00:00]} 23. Rd1 {[%clk 0:00:00]}  a4 {[%clk 0:00:00]} 24. Rhd2 {[%clk 0:00:00]}  axb3+ {[%clk 0:00:00]} 25. axb3 {[%clk 0:00:00]}  Ra8 {[%clk 0:00:00]} 26. Kb2 {[%clk 0:00:00]}  Ra7 {[%clk 0:00:00]} 27. Ra1 {[%clk 0:00:00]}  Rha8 {[%clk 0:00:00]} 28. Rxa7 {[%clk 0:00:00]}  Rxa7 {[%clk 0:00:00]} 29. Rd1 {[%clk 0:00:00]}  Rb7 {[%clk 0:00:00]} 30. Ra1 {[%clk 0:00:00]}  b4 {[%clk 0:00:00]} 31. cxb4 {[%clk 0:00:00]}  Rxb4 {[%clk 0:00:00]} 32. Ra4 {[%clk 0:00:00]}  Rb5 {[%clk 0:00:00]} 33. Kc3 {[%clk 0:00:00]}  Bd8 {[%clk 0:00:00]} 34. Ra7 {[%clk 0:00:00]}  Ba5+ {[%clk 0:00:00]} 35. Kc2 {[%clk 0:00:00]}  Bb6 {[%clk 0:00:00]} 36. Rb7 {[%clk 0:00:00]}  Rb4 {[%clk 0:00:00]} 37. f5 {[%clk 0:00:00]}  Bd8 {[%clk 0:00:00]} 38. f6+ {[%clk 0:00:00]}  Kf8 {[%clk 0:00:00]} 39. Rb8 {[%clk 0:00:00]}  Rxb8 {[%clk 0:00:00]} 0-1


[Site "https://www.chess.com"]